{"text_format":"1","workbook":"xlsx","n_sheets":2,"sheets":["Hoja de Registro","Credenciales"],"not_rendered":{"charts":0,"images":6,"macros":0,"external_links":0,"defined_names":2,"comments":0,"pivot_tables":0},"unopened":[],"bounds":{"document_bytes":16777216,"sheet_cells":100000,"rows_first":2000,"rows_last":500,"rows_between":2000,"halvings":0,"cell_chars":16384,"cell_head_chars":4096},"cells_cut":0,"cells_raw":0,"read":"whole","date_system":"1900"}

{"sheet":"Hoja de Registro","index":0,"n_rows":40,"n_cols":13,"rows_kept":40,"cut":false,"hidden":false,"merged":[[2,6,2,13],[12,5,12,6],[13,5,13,6],[2,4,2,5],[3,3,3,4],[3,6,3,8],[12,3,12,4],[13,3,13,4],[7,5,7,6],[4,3,4,4],[7,10,7,11],[4,11,4,13],[3,11,3,13],[6,12,7,14],[13,12,13,14],[12,10,12,11],[6,10,6,11],[6,9,7,9],[13,10,13,11],[6,8,7,8],[8,5,8,6],[28,3,28,4],[27,3,27,4],[17,5,17,6],[15,3,15,4],[21,5,21,6],[20,5,20,6],[16,3,16,4],[17,3,17,4],[16,5,16,6],[15,5,15,6],[24,5,24,6],[23,5,23,6],[22,5,22,6],[18,3,18,4],[19,3,19,4],[24,3,24,4],[23,3,23,4],[19,5,19,6],[22,3,22,4],[20,3,20,4],[21,3,21,4],[18,5,18,6],[26,12,26,14],[27,12,27,14],[30,1,30,2],[31,1,31,2],[29,3,29,4],[26,3,26,4],[20,1,20,2],[21,1,21,2],[22,1,22,2],[23,1,23,2],[29,1,29,2],[28,1,28,2],[27,1,27,2],[26,1,26,2],[31,3,31,4],[31,5,31,6],[30,3,30,4],[25,3,25,4],[26,5,26,6],[27,5,27,6],[28,5,28,6],[29,5,29,6],[30,5,30,6],[25,5,25,6],[9,1,9,2],[9,5,9,6],[10,1,10,2],[18,1,18,2],[19,1,19,2],[39,10,39,14],[38,10,38,14],[33,1,33,14],[37,6,37,8],[35,6,35,8],[36,6,36,8],[24,1,24,2],[25,1,25,2],[39,6,39,8],[38,2,38,4],[39,2,39,4],[35,2,35,4],[36,2,36,4],[37,2,37,4],[35,10,35,14],[36,10,36,14],[37,10,37,14],[38,6,38,8],[14,12,14,14],[15,12,15,14],[16,12,16,14],[17,12,17,14],[18,12,18,14],[17,10,17,11],[18,10,18,11],[13,1,13,2],[16,1,16,2],[14,1,14,2],[15,1,15,2],[17,1,17,2],[16,10,16,11],[14,10,14,11],[15,10,15,11],[14,3,14,4],[14,5,14,6],[31,12,31,14],[25,10,25,11],[19,12,19,14],[20,12,20,14],[21,12,21,14],[22,12,22,14],[23,12,23,14],[24,12,24,14],[27,10,27,11],[26,10,26,11],[28,10,28,11],[29,10,29,11],[30,10,30,11],[19,10,19,11],[20,10,20,11],[21,10,21,11],[22,10,22,11],[23,10,23,11],[24,10,24,11],[28,12,28,14],[29,12,29,14],[30,12,30,14],[25,12,25,14],[31,10,31,11],[0,0,0,14],[8,12,8,14],[9,12,9,14],[10,12,10,14],[11,12,11,14],[12,12,12,14],[8,10,8,11],[9,10,9,11],[10,10,10,11],[11,10,11,11],[12,1,12,2],[4,6,4,8],[7,1,7,2],[7,3,7,4],[6,7,7,7],[6,1,6,6],[10,5,10,6],[11,5,11,6],[11,1,11,2],[9,3,9,4],[10,3,10,4],[11,3,11,4],[8,1,8,2],[8,3,8,4]]}
["HOJA DE REGISTRO "]
[]
[null,null,null,null,"INSTITUCION"]
[null,null,null,"FÚTBOL"]
[null,null,null,"DEPORTE",null,null,"CATEGORIA"]
[]
["FOLIO","NOMBRE DEL ALUMNO",null,null,null,null,null,"FECHA DE NAC.","CATEGORIA","CURP","No de playera",null,"NÚMERO DE PLAYERA "]
[null,"APELLIDO PATERNO",null,"APELIDO MATERNO",null,"NOMBRE",null,null,null,null,"Núm"]
[1,null,null,null,null,null,null,null,{"$f":"G4","v":0}]
[2,null,null,null,null,null,null,null,{"$f":"G4","v":0}]
[3,null,null,null,null,null,null,null,{"$f":"G4","v":0}]
[4,null,null,null,null,null,null,null,{"$f":"G4","v":0}]
[5,null,null,null,null,null,null,null,{"$f":"G4","v":0}]
[6,null,null,null,null,null,null,null,{"$f":"G4","v":0}]
[7,null,null,null,null,null,null,null,{"$f":"G4","v":0}]
[8,null,null,null,null,null,null,null,{"$f":"G4","v":0}]
[9,null,null,null,null,null,null,null,{"$f":"G4","v":0}]
[10,null,null,null,null,null,null,null,{"$f":"G4","v":0}]
[11,null,null,null,null,null,null,null,{"$f":"G4","v":0}]
[12,null,null,null,null,null,null,null,{"$f":"G4","v":0}]
[13,null,null,null,null,null,null,null,{"$f":"G4","v":0}]
[14,null,null,null,null,null,null,null,{"$f":"G4","v":0}]
[15,null,null,null,null,null,null,null,{"$f":"G4","v":0}]
[16,null,null,null,null,null,null,null,{"$f":"G4","v":0}]
[17,null,null,null,null,null,null,null,{"$f":"G4","v":0}]
[18,null,null,null,null,null,null,null,{"$f":"G4","v":0}]
[19,null,null,null,null,null,null,null,{"$f":"G4","v":0}]
[20,null,null,null,null,null,null,null,{"$f":"G4","v":0}]
[21,null,null,null,null,null,null,null,{"$f":"G4","v":0}]
[22,null,null,null,null,null,null,null,{"$f":"G4","v":0}]
[23,null,null,null,null,null,null,null,{"$f":"G4","v":0},null,null,null,"D.T"]
[24,null,null,null,null,null,null,null,{"$f":"G4","v":0},null,null,null,"AUXILIAR"]
[]
[]
[]
[]
[]
[null,null,"NOMBRE DEL COORDINADOR",null,null,null,"NOMBRE DEL PROFESOR",null,null,null,"FIRMA DE COMITÉ ORGANIZADOR"]
[]
[null,null,"FIRMA",null,null,null,"FIRMA",null,null,null,"Fecha de Registro"]

{"sheet":"Credenciales","index":1,"n_rows":103,"n_cols":56,"rows_kept":103,"cut":false,"hidden":false,"merged":[[19,46,19,56],[24,46,24,55],[33,54,33,55],[23,46,23,55],[60,32,60,41],[48,40,48,41],[32,46,32,52],[32,54,32,55],[14,32,14,38],[36,32,36,42],[57,32,57,42],[56,32,56,42],[50,40,50,41],[41,46,41,55],[50,54,50,55],[44,46,47,53],[49,32,49,38],[59,32,59,33],[59,35,59,41],[28,54,29,55],[36,46,36,56],[48,46,48,52],[48,54,48,55],[31,54,31,55],[59,49,59,55],[77,46,77,55],[63,46,63,50],[76,46,76,47],[76,49,76,55],[82,54,83,55],[85,54,85,55],[64,46,67,53],[79,51,79,54],[79,47,79,50],[39,49,39,55],[42,51,42,54],[104,54,104,55],[102,46,102,52],[102,54,102,55],[103,46,103,52],[103,54,103,55],[99,54,100,55],[93,46,93,47],[93,49,93,55],[94,46,94,55],[95,46,95,55],[98,46,101,53],[96,51,96,54],[97,51,97,55],[87,54,87,55],[90,46,90,56],[91,46,91,56],[56,46,56,56],[57,46,57,56],[63,51,63,55],[61,46,61,55],[62,51,62,54],[59,46,59,47],[15,46,15,52],[15,54,15,55],[11,54,12,55],[27,46,31,53],[20,46,20,56],[26,51,26,55],[26,23,26,27],[42,37,42,40],[43,32,43,36],[32,32,32,38],[32,40,32,41],[43,37,43,41],[43,23,43,27],[37,18,37,28],[41,18,41,27],[42,23,42,26],[43,18,43,22],[27,26,29,27],[28,40,29,41],[27,32,31,39],[26,37,26,41],[16,54,16,55],[37,46,37,56],[39,46,39,47],[32,4,32,10],[37,32,37,42],[27,12,29,13],[31,12,31,13],[31,26,31,27],[39,32,39,33],[2,46,2,56],[3,46,3,56],[9,46,9,50],[9,51,9,55],[10,46,13,53],[6,46,6,55],[8,51,8,54],[25,51,25,54],[26,46,26,50],[8,47,8,50],[25,47,25,50],[5,46,5,47],[5,49,5,55],[7,46,7,55],[22,46,22,47],[22,49,22,55],[14,46,14,52],[14,54,14,55],[11,40,12,41],[15,32,15,38],[19,32,19,42],[42,33,42,36],[44,26,46,27],[45,40,46,41],[44,32,48,39],[44,18,48,25],[64,32,67,39],[49,40,49,41],[103,4,103,10],[103,12,103,13],[81,4,84,11],[41,32,41,41],[36,4,36,14],[40,32,40,41],[104,40,104,41],[80,37,80,41],[85,40,85,41],[68,32,68,38],[103,18,103,24],[74,32,74,42],[103,32,103,38],[87,40,87,41],[90,32,90,42],[91,32,91,42],[96,37,96,40],[93,35,93,41],[97,37,97,41],[95,32,95,41],[86,26,86,27],[102,18,102,24],[78,32,78,41],[80,32,80,36],[10,4,13,11],[10,18,13,25],[39,35,39,41],[104,26,104,27],[97,9,97,13],[97,23,97,27],[33,40,33,41],[90,4,90,14],[40,4,40,13],[40,18,40,27],[60,4,60,13],[90,18,90,28],[87,26,87,27],[80,23,80,27],[91,4,91,14],[91,18,91,28],[85,4,85,10],[85,18,85,24],[85,12,85,13],[81,18,84,25],[79,5,79,8],[97,4,97,8],[97,18,97,22],[104,12,104,13],[23,4,23,13],[16,40,16,41],[19,18,19,28],[24,32,24,41],[25,37,25,40],[26,32,26,36],[25,33,25,36],[27,4,31,11],[27,18,31,25],[8,9,8,12],[8,5,8,8],[8,19,8,22],[8,33,8,36],[7,4,7,13],[5,4,5,5],[22,4,22,5],[5,7,5,13],[10,12,12,13],[14,12,14,13],[15,12,15,13],[16,12,16,13],[19,4,19,14],[20,4,20,14],[16,26,16,27],[15,18,15,24],[14,4,14,10],[7,32,7,41],[8,37,8,40],[14,40,14,41],[9,23,9,27],[20,32,20,42],[9,32,9,36],[22,32,22,33],[15,4,15,10],[20,18,20,28],[14,18,14,24],[10,26,12,27],[69,4,69,10],[69,12,69,13],[76,32,76,33],[76,35,76,41],[73,32,73,42],[39,4,39,5],[61,4,61,13],[61,32,61,41],[59,4,59,5],[59,18,59,19],[49,26,49,27],[49,18,49,24],[49,12,49,13],[49,4,49,10],[31,40,31,41],[10,32,13,39],[23,32,23,41],[22,7,22,13],[22,35,22,41],[13,26,15,27],[2,4,2,14],[3,4,3,14],[2,32,2,42],[3,32,3,42],[6,4,6,13],[6,18,6,27],[2,18,2,28],[3,18,3,28],[5,21,5,27],[6,32,6,41],[5,35,5,41],[5,32,5,33],[5,18,5,19],[7,18,7,27],[15,40,15,41],[9,37,9,41],[99,40,101,41],[81,32,85,39],[82,40,83,41],[82,12,83,13],[82,26,83,27],[73,18,73,28],[70,12,70,13],[74,18,74,28],[69,18,69,24],[70,26,70,27],[76,21,76,27],[86,12,86,13],[87,12,87,13],[23,18,23,27],[99,12,100,13],[57,4,57,14],[24,4,24,13],[25,9,25,12],[26,4,26,8],[64,4,68,11],[68,12,68,13],[97,32,97,36],[79,19,79,22],[98,18,101,25],[98,32,101,39],[103,26,103,27],[86,18,86,24],[99,26,100,27],[103,40,103,41],[102,32,102,38],[102,40,102,41],[93,32,93,33],[43,9,43,13],[9,9,9,13],[26,9,26,13],[36,18,36,28],[32,18,32,24],[33,12,33,13],[41,4,41,13],[48,26,48,27],[22,18,22,19],[26,18,26,22],[22,21,22,27],[9,18,9,22],[48,12,48,13],[44,12,46,13],[25,5,25,8],[25,19,25,22],[42,5,42,8],[42,19,42,22],[24,18,24,27],[32,12,32,13],[32,26,32,27],[39,18,39,19],[37,4,37,14],[9,4,9,8],[102,12,102,13],[102,26,102,27],[98,4,101,11],[77,4,77,13],[57,18,57,28],[56,18,56,28],[39,7,39,13],[39,21,39,27],[25,23,25,26],[33,26,33,27],[59,7,59,13],[42,9,42,12],[43,4,43,8],[59,21,59,27],[44,4,48,11],[85,26,85,27],[102,4,102,10],[63,9,63,13],[50,12,50,13],[50,26,50,27],[60,18,60,27],[73,4,73,14],[64,18,67,25],[63,23,63,27],[69,32,69,38],[77,32,77,41],[94,32,94,41],[63,32,63,36],[61,18,61,27],[56,4,56,14],[65,12,66,13],[65,26,66,27],[62,9,62,12],[62,23,62,26],[63,4,63,8],[63,18,63,22],[62,19,62,22],[79,37,79,40],[63,37,63,41],[93,7,93,13],[79,33,79,36],[65,40,66,41],[86,4,86,10],[95,4,95,13],[95,18,95,27],[93,18,93,19],[93,21,93,27],[80,9,80,13],[76,4,76,5],[76,7,76,13],[76,18,76,19],[77,18,77,27],[80,4,80,8],[80,18,80,22],[94,4,94,13],[94,18,94,27],[40,46,40,55],[60,46,60,55],[80,46,80,50],[80,51,80,55],[86,54,86,55],[86,46,86,52],[85,46,85,52],[78,46,78,55],[42,47,42,50],[62,47,62,50],[81,46,84,53],[43,46,43,50],[43,51,43,55],[65,54,66,55],[68,54,68,55],[69,46,69,52],[69,54,69,55],[70,54,70,55],[73,46,73,56],[74,46,74,56],[68,46,68,52],[49,46,49,52],[49,54,49,55],[45,54,46,55],[96,5,96,8],[96,19,96,22],[96,47,96,50],[96,33,96,36],[62,5,62,8],[93,4,93,5],[96,9,96,12],[96,23,96,26],[97,46,97,50],[78,4,78,13],[78,18,78,27],[79,9,79,12],[79,23,79,26],[62,37,62,40],[62,33,62,36],[68,40,68,41],[68,18,68,24],[69,26,69,27],[68,26,68,27],[86,32,86,38],[86,40,86,41],[69,40,69,41],[70,40,70,41],[74,4,74,14]]}
[]
[]
[]
[null,null,null,null,"LIGA SPORT GOL 2025 - 2026",null,null,null,null,null,null,null,null,null,null,null,null,null,"LIGA SPORT GOL 2025 - 2026",null,null,null,null,null,null,null,null,null,null,null,null,null,"LIGA SPORT GOL 2025 - 2026",null,null,null,null,null,null,null,null,null,null,null,null,null,"LIGA SPORT GOL 2025 - 2026"]
[]
[null,null,null,null,"CURP",null,null,{"$f":"'Hoja de Registro'!$J9","v":0},null,null,null,null,null,null,null,null,null,null,"CURP",null,null,{"$f":"'Hoja de Registro'!$J10","v":0},null,null,null,null,null,null,null,null,null,null,"CURP",null,null,{"$f":"'Hoja de Registro'!$J21","v":0},null,null,null,null,null,null,null,null,null,null,"CURP",null,null,{"$f":"'Hoja de Registro'!$J22","v":0}]
[null,null,null,null,{"$f":"'Hoja de Registro'!$G3","v":0},null,null,null,null,null,null,null,null,null,null,null,null,null,null,null,null,null,null,null,null,null,null,null,null,null,null,null,{"$f":"'Hoja de Registro'!$G3","v":0},null,null,null,null,null,null,null,null,null,null,null,null,null,{"$f":"'Hoja de Registro'!$G3","v":0}]
[null,null,null,null,{"$f":"'Hoja de Registro'!$D$4","v":"FÚTBOL"},null,null,null,null,null,null,null,null,null,null,null,null,null,{"$f":"'Hoja de Registro'!$D$4","v":"FÚTBOL"},null,null,null,null,null,null,null,null,null,null,null,null,null,{"$f":"'Hoja de Registro'!$D$4","v":"FÚTBOL"},null,null,null,null,null,null,null,null,null,null,null,null,null,{"$f":"'Hoja de Registro'!$D$4","v":"FÚTBOL"}]
[null,null,null,null,"CAT",{"$f":"'Hoja de Registro'!$I9","v":0},null,null,null,null,null,null,null,{"$f":"'Hoja de Registro'!$K9","v":0},null,null,null,null,"CAT",{"$f":"'Hoja de Registro'!$I10","v":0},null,null,null,null,null,null,null,{"$f":"'Hoja de Registro'!$K10","v":0},null,null,null,null,"CAT",{"$f":"'Hoja de Registro'!$I21","v":0},null,null,null,null,null,null,null,{"$f":"'Hoja de Registro'!$K21","v":0},null,null,null,null,"CAT",{"$f":"'Hoja de Registro'!$I22","v":0},null,null,null,null,null,null,null,{"$f":"'Hoja de Registro'!$K22","v":0}]
[null,null,null,null,"FECHA DE NAC",null,null,null,null,{"$f":"'Hoja de Registro'!$H9","v":"00:00:00"},null,null,null,null,null,null,null,null,"FECHA DE NAC",null,null,null,null,{"$f":"'Hoja de Registro'!$H10","v":"00:00:00"},null,null,null,null,null,null,null,null,"FECHA DE NAC",null,null,null,null,{"$f":"'Hoja de Registro'!$H9","v":"00:00:00"},null,null,null,null,null,null,null,null,"FECHA DE NAC",null,null,null,null,{"$f":"'Hoja de Registro'!$H22","v":"00:00:00"}]
[null,null,null,null,{"$f":"'Hoja de Registro'!$F9&\" \"&'Hoja de Registro'!$B9&\" \"&'Hoja de Registro'!$D9","v":"  "},null,null,null,null,null,null,null,{"$f":"'Hoja de Registro'!$M9","v":0},null,null,null,null,null,{"$f":"'Hoja de Registro'!$F10&\" \"&'Hoja de Registro'!$B10&\" \"&'Hoja de Registro'!$D10","v":"  "},null,null,null,null,null,null,null,{"$f":"'Hoja de Registro'!$M10","v":0},null,null,null,null,null,{"$f":"'Hoja de Registro'!$F21&\" \"&'Hoja de Registro'!$B21&\" \"&'Hoja de Registro'!$D21","v":"  "},null,null,null,null,null,null,null,null,null,null,null,null,null,{"$f":"'Hoja de Registro'!$F22&\" \"&'Hoja de Registro'!$B22&\" \"&'Hoja de Registro'!$D22","v":"  "}]
[null,null,null,null,null,null,null,null,null,null,null,null,null,null,null,null,null,null,null,null,null,null,null,null,null,null,null,null,null,null,null,null,null,null,null,null,null,null,null,null,{"$f":"'Hoja de Registro'!$M21","v":0},null,null,null,null,null,null,null,null,null,null,null,null,null,{"$f":"'Hoja de Registro'!$M22","v":0}]
[null,null,null,null,null,null,null,null,null,null,null,null,null,null,null,null,{"$f":"'Hoja de Registro'!$A10","v":2},null,null,null,null,null,null,null,null,null,null,null,null,null,{"$f":"'Hoja de Registro'!$A21","v":13},null,null,null,null,null,null,null,null,null,null,null,null,null,{"$f":"'Hoja de Registro'!$A22","v":14}]
[null,null,{"$f":"'Hoja de Registro'!$A9","v":1}]
[null,null,null,null,{"$f":"'Hoja de Registro'!$G27","v":0},null,null,null,null,null,null,null,null,null,null,null,null,null,{"$f":"'Hoja de Registro'!$G27","v":0},null,null,null,null,null,null,null,null,null,null,null,null,null,{"$f":"'Hoja de Registro'!$G27","v":0},null,null,null,null,null,null,null,null,null,null,null,null,null,{"$f":"'Hoja de Registro'!$G27","v":0}]
[]
[]
[]
[]
[]
[null,null,null,null,"LIGA SPORT GOL 2025 - 2026",null,null,null,null,null,null,null,null,null,null,null,null,null,"LIGA SPORT GOL 2025 - 2026",null,null,null,null,null,null,null,null,null,null,null,null,null,"LIGA SPORT GOL 2025 - 2026",null,null,null,null,null,null,null,null,null,null,null,null,null,"LIGA SPORT GOL 2025 - 2026"]
[]
[null,null,null,null,"CURP",null,null,{"$f":"'Hoja de Registro'!$J11","v":0},null,null,null,null,null,null,null,null,null,null,"CURP",null,null,{"$f":"'Hoja de Registro'!$J12","v":0},null,null,null,null,null,null,null,null,null,null,"CURP",null,null,{"$f":"'Hoja de Registro'!$J23","v":0},null,null,null,null,null,null,null,null,null,null,"CURP",null,null,{"$f":"'Hoja de Registro'!$J24","v":0}]
[null,null,null,null,{"$f":"'Hoja de Registro'!$G3","v":0},null,null,null,null,null,null,null,null,null,null,null,null,null,{"$f":"'Hoja de Registro'!$G3","v":0},null,null,null,null,null,null,null,null,null,null,null,null,null,{"$f":"'Hoja de Registro'!$G3","v":0},null,null,null,null,null,null,null,null,null,null,null,null,null,{"$f":"'Hoja de Registro'!$G3","v":0}]
[null,null,null,null,{"$f":"'Hoja de Registro'!$D$4","v":"FÚTBOL"},null,null,null,null,null,null,null,null,null,null,null,null,null,{"$f":"'Hoja de Registro'!$D$4","v":"FÚTBOL"},null,null,null,null,null,null,null,null,null,null,null,null,null,{"$f":"'Hoja de Registro'!$D$4","v":"FÚTBOL"},null,null,null,null,null,null,null,null,null,null,null,null,null,{"$f":"'Hoja de Registro'!$D$4","v":"FÚTBOL"}]
[null,null,null,null,"CAT",{"$f":"'Hoja de Registro'!$I11","v":0},null,null,null,null,null,null,null,{"$f":"'Hoja de Registro'!$K11","v":0},null,null,null,null,"CAT",{"$f":"'Hoja de Registro'!$I12","v":0},null,null,null,null,null,null,null,{"$f":"'Hoja de Registro'!$K12","v":0},null,null,null,null,"CAT",{"$f":"'Hoja de Registro'!$I23","v":0},null,null,null,null,null,null,null,{"$f":"'Hoja de Registro'!$K23","v":0},null,null,null,null,"CAT",{"$f":"'Hoja de Registro'!$I24","v":0},null,null,null,null,null,null,null,{"$f":"'Hoja de Registro'!$K26","v":0}]
[null,null,null,null,"FECHA DE NAC",null,null,null,null,{"$f":"'Hoja de Registro'!$H11","v":"00:00:00"},null,null,null,null,null,null,null,null,"FECHA DE NAC",null,null,null,null,{"$f":"'Hoja de Registro'!$H12","v":"00:00:00"},null,null,null,null,null,null,null,null,"FECHA DE NAC",null,null,null,null,{"$f":"'Hoja de Registro'!$H23","v":"00:00:00"},null,null,null,null,null,null,null,null,"FECHA DE NAC",null,null,null,null,{"$f":"'Hoja de Registro'!$H24","v":"00:00:00"}]
[null,null,null,null,{"$f":"'Hoja de Registro'!$F11&\" \"&'Hoja de Registro'!$B11&\" \"&'Hoja de Registro'!$D11","v":"  "},null,null,null,null,null,null,null,{"$f":"'Hoja de Registro'!$M11","v":0},null,null,null,null,null,{"$f":"'Hoja de Registro'!$F12&\" \"&'Hoja de Registro'!$B12&\" \"&'Hoja de Registro'!$D12","v":"  "},null,null,null,null,null,null,null,{"$f":"'Hoja de Registro'!$M12","v":0},null,null,null,null,null,{"$f":"'Hoja de Registro'!$F23&\" \"&'Hoja de Registro'!$B26&\" \"&'Hoja de Registro'!$D26","v":"  "},null,null,null,null,null,null,null,null,null,null,null,null,null,{"$f":"'Hoja de Registro'!$F24&\" \"&'Hoja de Registro'!$B24&\" \"&'Hoja de Registro'!$D24","v":"  "}]
[null,null,null,null,null,null,null,null,null,null,null,null,null,null,null,null,null,null,null,null,null,null,null,null,null,null,null,null,null,null,null,null,null,null,null,null,null,null,null,null,{"$f":"'Hoja de Registro'!$M23","v":0},null,null,null,null,null,null,null,null,null,null,null,null,null,{"$f":"'Hoja de Registro'!$M24","v":0}]
[null,null,{"$f":"'Hoja de Registro'!$A11","v":3},null,null,null,null,null,null,null,null,null,null,null,null,null,{"$f":"'Hoja de Registro'!$A12","v":4},null,null,null,null,null,null,null,null,null,null,null,null,null,{"$f":"'Hoja de Registro'!$A23","v":15},null,null,null,null,null,null,null,null,null,null,null,null,null,{"$f":"'Hoja de Registro'!$A24","v":16}]
[]
[]
[]
[]
[]
[]
[]
[null,null,null,null,"LIGA SPORT GOL 2025 - 2026",null,null,null,null,null,null,null,null,null,null,null,null,null,"LIGA SPORT GOL 2025 - 2026",null,null,null,null,null,null,null,null,null,null,null,null,null,"LIGA SPORT GOL 2025 - 2026",null,null,null,null,null,null,null,null,null,null,null,null,null,"LIGA SPORT GOL 2025 - 2026"]
[]
[null,null,null,null,"CURP",null,null,{"$f":"'Hoja de Registro'!$J13","v":0},null,null,null,null,null,null,null,null,null,null,"CURP",null,null,{"$f":"'Hoja de Registro'!$J14","v":0},null,null,null,null,null,null,null,null,null,null,"CURP",null,null,{"$f":"'Hoja de Registro'!$J25","v":0},null,null,null,null,null,null,null,null,null,null,"CURP",null,null,{"$f":"'Hoja de Registro'!$J26","v":0}]
[null,null,null,null,{"$f":"'Hoja de Registro'!$G3","v":0},null,null,null,null,null,null,null,null,null,null,null,null,null,{"$f":"'Hoja de Registro'!$G3","v":0},null,null,null,null,null,null,null,null,null,null,null,null,null,{"$f":"'Hoja de Registro'!$G3","v":0},null,null,null,null,null,null,null,null,null,null,null,null,null,{"$f":"'Hoja de Registro'!$G3","v":0}]
[null,null,null,null,{"$f":"'Hoja de Registro'!$D$4","v":"FÚTBOL"},null,null,null,null,null,null,null,null,null,null,null,null,null,{"$f":"'Hoja de Registro'!$D$4","v":"FÚTBOL"},null,null,null,null,null,null,null,null,null,null,null,null,null,{"$f":"'Hoja de Registro'!$D$4","v":"FÚTBOL"},null,null,null,null,null,null,null,null,null,null,null,null,null,{"$f":"'Hoja de Registro'!$D$4","v":"FÚTBOL"}]
[null,null,null,null,"CAT",{"$f":"'Hoja de Registro'!$I13","v":0},null,null,null,null,null,null,null,{"$f":"'Hoja de Registro'!$K13","v":0},null,null,null,null,"CAT",{"$f":"'Hoja de Registro'!$I14","v":0},null,null,null,null,null,null,null,{"$f":"'Hoja de Registro'!$K14","v":0},null,null,null,null,"CAT",{"$f":"'Hoja de Registro'!$I25","v":0},null,null,null,null,null,null,null,{"$f":"'Hoja de Registro'!$K25","v":0},null,null,null,null,"CAT",{"$f":"'Hoja de Registro'!$I26","v":0},null,null,null,null,null,null,null,{"$f":"'Hoja de Registro'!$K26","v":0}]
[null,null,null,null,"FECHA DE NAC",null,null,null,null,{"$f":"'Hoja de Registro'!$H13","v":"00:00:00"},null,null,null,null,null,null,null,null,"FECHA DE NAC",null,null,null,null,{"$f":"'Hoja de Registro'!$H14","v":"00:00:00"},null,null,null,null,null,null,null,null,"FECHA DE NAC",null,null,null,null,{"$f":"'Hoja de Registro'!$H25","v":"00:00:00"},null,null,null,null,null,null,null,null,"FECHA DE NAC",null,null,null,null,{"$f":"'Hoja de Registro'!$H26","v":"00:00:00"}]
[null,null,null,null,{"$f":"'Hoja de Registro'!$F13&\" \"&'Hoja de Registro'!$B13&\" \"&'Hoja de Registro'!$D13","v":"  "},null,null,null,null,null,null,null,{"$f":"'Hoja de Registro'!$M13","v":0},null,null,null,null,null,{"$f":"'Hoja de Registro'!$F14&\" \"&'Hoja de Registro'!$B14&\" \"&'Hoja de Registro'!$D14","v":"  "},null,null,null,null,null,null,null,{"$f":"'Hoja de Registro'!$M14","v":0},null,null,null,null,null,{"$f":"'Hoja de Registro'!$F25&\" \"&'Hoja de Registro'!$B25&\" \"&'Hoja de Registro'!$D25","v":"  "},null,null,null,null,null,null,null,null,null,null,null,null,null,{"$f":"'Hoja de Registro'!$F26&\" \"&'Hoja de Registro'!$B26&\" \"&'Hoja de Registro'!$D26","v":"  "}]
[null,null,null,null,null,null,null,null,null,null,null,null,null,null,null,null,null,null,null,null,null,null,null,null,null,null,null,null,null,null,null,null,null,null,null,null,null,null,null,null,{"$f":"'Hoja de Registro'!$M25","v":0},null,null,null,null,null,null,null,null,null,null,null,null,null,{"$f":"'Hoja de Registro'!$M26","v":0}]
[null,null,{"$f":"'Hoja de Registro'!$A13","v":5},null,null,null,null,null,null,null,null,null,null,null,null,null,{"$f":"'Hoja de Registro'!$A14","v":6},null,null,null,null,null,null,null,null,null,null,null,null,null,{"$f":"'Hoja de Registro'!$A25","v":17},null,null,null,null,null,null,null,null,null,null,null,null,null,{"$f":"'Hoja de Registro'!$A26","v":18}]
[]
[null,null,null,null,null,null,null,null,null,null,null,null,null,null,null,null,null,null,null,null,null,null,null,null,null,null,null,null,null,null,null,null,null,null,null,null,null,null,null,null,null,null,null,null,null,null,{"$f":"'Hoja de Registro'!$G61","v":0}]
[]
[]
[]
[]
[]
[]
[]
[]
[null,null,null,null,"LIGA SPORT GOL 2025 - 2026",null,null,null,null,null,null,null,null,null,null,null,null,null,"LIGA SPORT GOL 2025 - 2026",null,null,null,null,null,null,null,null,null,null,null,null,null,"LIGA SPORT GOL 2025 - 2026",null,null,null,null,null,null,null,null,null,null,null,null,null,"LIGA SPORT GOL 2025 - 2026"]
[]
[null,null,null,null,"CURP",null,null,{"$f":"'Hoja de Registro'!$J15","v":0},null,null,null,null,null,null,null,null,null,null,"CURP",null,null,{"$f":"'Hoja de Registro'!$J16","v":0},null,null,null,null,null,null,null,null,null,null,"CURP",null,null,{"$f":"'Hoja de Registro'!$J27","v":0},null,null,null,null,null,null,null,null,null,null,"CURP",null,null,{"$f":"'Hoja de Registro'!$J28","v":0}]
[null,null,null,null,{"$f":"'Hoja de Registro'!$G3","v":0},null,null,null,null,null,null,null,null,null,null,null,null,null,{"$f":"'Hoja de Registro'!$G3","v":0},null,null,null,null,null,null,null,null,null,null,null,null,null,{"$f":"'Hoja de Registro'!$G3","v":0},null,null,null,null,null,null,null,null,null,null,null,null,null,{"$f":"'Hoja de Registro'!$G3","v":0}]
[null,null,null,null,{"$f":"'Hoja de Registro'!$D$4","v":"FÚTBOL"},null,null,null,null,null,null,null,null,null,null,null,null,null,{"$f":"'Hoja de Registro'!$D$4","v":"FÚTBOL"},null,null,null,null,null,null,null,null,null,null,null,null,null,{"$f":"'Hoja de Registro'!$D$4","v":"FÚTBOL"},null,null,null,null,null,null,null,null,null,null,null,null,null,{"$f":"'Hoja de Registro'!$D$4","v":"FÚTBOL"}]
[null,null,null,null,"CAT",{"$f":"'Hoja de Registro'!$I15","v":0},null,null,null,null,null,null,null,{"$f":"'Hoja de Registro'!$K15","v":0},null,null,null,null,"CAT",{"$f":"'Hoja de Registro'!$I16","v":0},null,null,null,null,null,null,null,{"$f":"'Hoja de Registro'!$K16","v":0},null,null,null,null,"CAT",{"$f":"'Hoja de Registro'!$I27","v":0},null,null,null,null,null,null,null,{"$f":"'Hoja de Registro'!$K27","v":0},null,null,null,null,"CAT",{"$f":"'Hoja de Registro'!$I28","v":0},null,null,null,null,null,null,null,{"$f":"'Hoja de Registro'!$K28","v":0}]
[null,null,null,null,"FECHA DE NAC",null,null,null,null,{"$f":"'Hoja de Registro'!$H15","v":"00:00:00"},null,null,null,null,null,null,null,null,"FECHA DE NAC",null,null,null,null,{"$f":"'Hoja de Registro'!$H16","v":"00:00:00"},null,null,null,null,null,null,null,null,"FECHA DE NAC",null,null,null,null,{"$f":"'Hoja de Registro'!$H27","v":"00:00:00"},null,null,null,null,null,null,null,null,"FECHA DE NAC",null,null,null,null,{"$f":"'Hoja de Registro'!$H28","v":"00:00:00"}]
[null,null,null,null,{"$f":"'Hoja de Registro'!$F15&\" \"&'Hoja de Registro'!$B15&\" \"&'Hoja de Registro'!$D15","v":"  "},null,null,null,null,null,null,null,null,null,null,null,null,null,{"$f":"'Hoja de Registro'!$F16&\" \"&'Hoja de Registro'!$B16&\" \"&'Hoja de Registro'!$D16","v":"  "},null,null,null,null,null,null,null,null,null,null,null,null,null,{"$f":"'Hoja de Registro'!$F27&\" \"&'Hoja de Registro'!$B27&\" \"&'Hoja de Registro'!$D27","v":"  "},null,null,null,null,null,null,null,null,null,null,null,null,null,{"$f":"'Hoja de Registro'!$F28&\" \"&'Hoja de Registro'!$B28&\" \"&'Hoja de Registro'!$D28","v":"  "}]
[null,null,null,null,null,null,null,null,null,null,null,null,{"$f":"'Hoja de Registro'!$M15","v":0},null,null,null,null,null,null,null,null,null,null,null,null,null,{"$f":"'Hoja de Registro'!$M16","v":0},null,null,null,null,null,null,null,null,null,null,null,null,null,{"$f":"'Hoja de Registro'!$M27","v":0},null,null,null,null,null,null,null,null,null,null,null,null,null,{"$f":"'Hoja de Registro'!$M28","v":0}]
[null,null,{"$f":"'Hoja de Registro'!$A15","v":7},null,null,null,null,null,null,null,null,null,null,null,null,null,{"$f":"'Hoja de Registro'!$A16","v":8},null,null,null,null,null,null,null,null,null,null,null,null,null,{"$f":"'Hoja de Registro'!$A27","v":19},null,null,null,null,null,null,null,null,null,null,null,null,null,{"$f":"'Hoja de Registro'!$A28","v":20}]
[]
[null,null,null,null,null,null,null,null,null,null,null,null,null,null,null,null,null,null,{"$f":"'Hoja de Registro'!$G81","v":0},null,null,null,null,null,null,null,null,null,null,null,null,null,{"$f":"'Hoja de Registro'!$G81","v":0},null,null,null,null,null,null,null,null,null,null,null,null,null,{"$f":"'Hoja de Registro'!$G81","v":0}]
[]
[]
[]
[]
[]
[null,null,null,null,"LIGA SPORT GOL 2025 - 2026",null,null,null,null,null,null,null,null,null,null,null,null,null,"LIGA SPORT GOL 2025 - 2026",null,null,null,null,null,null,null,null,null,null,null,null,null,"LIGA SPORT GOL 2025 - 2026",null,null,null,null,null,null,null,null,null,null,null,null,null,"LIGA SPORT GOL 2025 - 2026"]
[]
[null,null,null,null,"CURP",null,null,{"$f":"'Hoja de Registro'!$J17","v":0},null,null,null,null,null,null,null,null,null,null,"CURP",null,null,{"$f":"'Hoja de Registro'!$J18","v":0},null,null,null,null,null,null,null,null,null,null,"CURP",null,null,{"$f":"'Hoja de Registro'!$J29","v":0},null,null,null,null,null,null,null,null,null,null,"CURP",null,null,{"$f":"'Hoja de Registro'!$J30","v":0}]
[null,null,null,null,{"$f":"'Hoja de Registro'!$G3","v":0},null,null,null,null,null,null,null,null,null,null,null,null,null,{"$f":"'Hoja de Registro'!$G3","v":0},null,null,null,null,null,null,null,null,null,null,null,null,null,{"$f":"'Hoja de Registro'!$G3","v":0},null,null,null,null,null,null,null,null,null,null,null,null,null,{"$f":"'Hoja de Registro'!$G3","v":0}]
[null,null,null,null,{"$f":"'Hoja de Registro'!$D$4","v":"FÚTBOL"},null,null,null,null,null,null,null,null,null,null,null,null,null,{"$f":"'Hoja de Registro'!$D$4","v":"FÚTBOL"},null,null,null,null,null,null,null,null,null,null,null,null,null,{"$f":"'Hoja de Registro'!$D$4","v":"FÚTBOL"},null,null,null,null,null,null,null,null,null,null,null,null,null,{"$f":"'Hoja de Registro'!$D$4","v":"FÚTBOL"}]
[null,null,null,null,"CAT",{"$f":"'Hoja de Registro'!$I17","v":0},null,null,null,null,null,null,null,{"$f":"'Hoja de Registro'!$K17","v":0},null,null,null,null,"CAT",{"$f":"'Hoja de Registro'!$I18","v":0},null,null,null,null,null,null,null,{"$f":"'Hoja de Registro'!$K18","v":0},null,null,null,null,"CAT",{"$f":"'Hoja de Registro'!$I29","v":0},null,null,null,null,null,null,null,{"$f":"'Hoja de Registro'!$K29","v":0},null,null,null,null,"CAT",{"$f":"'Hoja de Registro'!$I30","v":0},null,null,null,null,null,null,null,{"$f":"'Hoja de Registro'!$K30","v":0}]
[null,null,null,null,"FECHA DE NAC",null,null,null,null,{"$f":"'Hoja de Registro'!$H17","v":"00:00:00"},null,null,null,null,null,null,null,null,"FECHA DE NAC",null,null,null,null,{"$f":"'Hoja de Registro'!$H18","v":"00:00:00"},null,null,null,null,null,null,null,null,"FECHA DE NAC",null,null,null,null,{"$f":"'Hoja de Registro'!$H29","v":"00:00:00"},null,null,null,null,null,null,null,null,"FECHA DE NAC",null,null,null,null,{"$f":"'Hoja de Registro'!$H30","v":"00:00:00"}]
[null,null,null,null,{"$f":"'Hoja de Registro'!$F17&\" \"&'Hoja de Registro'!$B17&\" \"&'Hoja de Registro'!$D17","v":"  "},null,null,null,null,null,null,null,null,null,null,null,null,null,{"$f":"'Hoja de Registro'!$F18&\" \"&'Hoja de Registro'!$B18&\" \"&'Hoja de Registro'!$D18","v":"  "},null,null,null,null,null,null,null,null,null,null,null,null,null,{"$f":"'Hoja de Registro'!$F29&\" \"&'Hoja de Registro'!$B29&\" \"&'Hoja de Registro'!$D29","v":"  "},null,null,null,null,null,null,null,null,null,null,null,null,null,{"$f":"'Hoja de Registro'!$F30&\" \"&'Hoja de Registro'!$B30&\" \"&'Hoja de Registro'!$D30","v":"  "}]
[null,null,null,null,null,null,null,null,null,null,null,null,{"$f":"'Hoja de Registro'!$M17","v":0},null,null,null,null,null,null,null,null,null,null,null,null,null,{"$f":"'Hoja de Registro'!$M18","v":0},null,null,null,null,null,null,null,null,null,null,null,null,null,{"$f":"'Hoja de Registro'!$M29","v":0},null,null,null,null,null,null,null,null,null,null,null,null,null,{"$f":"'Hoja de Registro'!$M30","v":0}]
[null,null,{"$f":"'Hoja de Registro'!$A17","v":9},null,null,null,null,null,null,null,null,null,null,null,null,null,{"$f":"'Hoja de Registro'!$A18","v":10},null,null,null,null,null,null,null,null,null,null,null,null,null,{"$f":"'Hoja de Registro'!$A29","v":21},null,null,null,null,null,null,null,null,null,null,null,null,null,{"$f":"'Hoja de Registro'!$A30","v":22}]
[]
[null,null,null,null,{"$f":"'Hoja de Registro'!$G98","v":0},null,null,null,null,null,null,null,null,null,null,null,null,null,{"$f":"'Hoja de Registro'!$G98","v":0},null,null,null,null,null,null,null,null,null,null,null,null,null,null,null,null,null,null,null,null,null,null,null,null,null,null,null,{"$f":"'Hoja de Registro'!$G98","v":0}]
[]
[]
[]
[]
[]
[null,null,null,null,"LIGA SPORT GOL 2025 - 2026",null,null,null,null,null,null,null,null,null,null,null,null,null,"LIGA SPORT GOL 2025 - 2026",null,null,null,null,null,null,null,null,null,null,null,null,null,"LIGA SPORT GOL 2025 - 2026",null,null,null,null,null,null,null,null,null,null,null,null,null,"LIGA SPORT GOL 2025 - 2026"]
[]
[null,null,null,null,"CURP",null,null,{"$f":"'Hoja de Registro'!$J19","v":0},null,null,null,null,null,null,null,null,null,null,"CURP",null,null,{"$f":"'Hoja de Registro'!$J20","v":0}]
[null,null,null,null,{"$f":"'Hoja de Registro'!$G3","v":0},null,null,null,null,null,null,null,null,null,null,null,null,null,{"$f":"'Hoja de Registro'!$G3","v":0},null,null,null,null,null,null,null,null,null,null,null,null,null,{"$f":"'Hoja de Registro'!$G3","v":0},null,null,null,null,null,null,null,null,null,null,null,null,null,{"$f":"'Hoja de Registro'!$G3","v":0}]
[null,null,null,null,{"$f":"'Hoja de Registro'!$D$4","v":"FÚTBOL"},null,null,null,null,null,null,null,null,null,null,null,null,null,{"$f":"'Hoja de Registro'!$D$4","v":"FÚTBOL"},null,null,null,null,null,null,null,null,null,null,null,null,null,{"$f":"'Hoja de Registro'!$D$4","v":"FÚTBOL"},null,null,null,null,null,null,null,null,null,null,null,null,null,{"$f":"'Hoja de Registro'!$D$4","v":"FÚTBOL"}]
[null,null,null,null,"CAT",{"$f":"'Hoja de Registro'!$I19","v":0},null,null,null,null,null,null,null,{"$f":"'Hoja de Registro'!$K19","v":0},null,null,null,null,"CAT",{"$f":"'Hoja de Registro'!$I20","v":0},null,null,null,null,null,null,null,{"$f":"'Hoja de Registro'!$K20","v":0},null,null,null,null,"CAT",{"$f":"'Hoja de Registro'!$I31","v":0},null,null,null,null,null,null,null,null,null,null,null,null,"CAT",{"$f":"'Hoja de Registro'!$I32","v":0}]
[null,null,null,null,"FECHA DE NAC",null,null,null,null,{"$f":"'Hoja de Registro'!$H19","v":"00:00:00"},null,null,null,null,null,null,null,null,"FECHA DE NAC",null,null,null,null,{"$f":"'Hoja de Registro'!$H20","v":"00:00:00"}]
[null,null,null,null,{"$f":"'Hoja de Registro'!$F19&\" \"&'Hoja de Registro'!$B19&\" \"&'Hoja de Registro'!$D19","v":"  "},null,null,null,null,null,null,null,null,null,null,null,null,null,{"$f":"'Hoja de Registro'!$F20&\" \"&'Hoja de Registro'!$B20&\" \"&'Hoja de Registro'!$D20","v":"  "},null,null,null,null,null,null,null,null,null,null,null,null,null,{"$f":"'Hoja de Registro'!$F31&\" \"&'Hoja de Registro'!$B31&\" \"&'Hoja de Registro'!$D31","v":"  "},null,null,null,null,null,null,null,null,null,null,null,null,null,{"$f":"'Hoja de Registro'!$F32&\" \"&'Hoja de Registro'!$B32&\" \"&'Hoja de Registro'!$D32","v":"  "}]
[null,null,null,null,null,null,null,null,null,null,null,null,{"$f":"'Hoja de Registro'!$M19","v":0},null,null,null,null,null,null,null,null,null,null,null,null,null,{"$f":"'Hoja de Registro'!$M20","v":0},null,null,null,null,null,null,null,null,null,null,null,null,null,{"$f":"'Hoja de Registro'!$M31","v":"D.T"},null,null,null,null,null,null,null,null,null,null,null,null,null,{"$f":"'Hoja de Registro'!$M32","v":"AUXILIAR"}]
[null,null,{"$f":"'Hoja de Registro'!$A19","v":11},null,null,null,null,null,null,null,null,null,null,null,null,null,{"$f":"'Hoja de Registro'!$A20","v":12},null,null,null,null,null,null,null,null,null,null,null,null,null,{"$f":"'Hoja de Registro'!$A31","v":23},null,null,null,null,null,null,null,null,null,null,null,null,null,{"$f":"'Hoja de Registro'!$A32","v":24}]
[]
[null,null,null,null,null,null,null,null,null,null,null,null,null,null,null,null,null,null,{"$f":"'Hoja de Registro'!$G115","v":0},null,null,null,null,null,null,null,null,null,null,null,null,null,{"$f":"'Hoja de Registro'!$G115","v":0},null,null,null,null,null,null,null,null,null,null,null,null,null,{"$f":"'Hoja de Registro'!$G115","v":0}]